Cogmind - Beta 10.2 @@@ ROGUE MODE // 2020.11.04 @ 15:05:50 // Halloween2020/ForbiddenLore Player: Gobbopathe Result: Destroyed by as-70096 with Assembled Heavy Rifle Performance ------------- Evolutions (0) 0 Regions Visited (3) 600 Robots Destroyed (27) 135 Value Destroyed (124) 124 Prototype IDs (1) 20 Alien Tech Used (0) 0 Bonus (402) 402 TOTAL SCORE: 1281 Bonus ------- Follower Combat Kills 102 Aligned with FarCom 300 Cogmind --------- Core Integrity 0/250 Matter 279/300 Energy 99/100 System Corruption 0% Temperature Cool (0) Movement Core (150) Ox2 Location -10/Exiles Parts ------- > --- POWER (1) -------- (None) > --- PROPULSION (2) --- (None) > --- UTILITY (2) ------ Small Storage Unit Supersonic Drone Bay (1/1) > --- WEAPON (2) ------- Light Assault Rifle Makeshift Spear > --- INVENTORY (6) ---- (None) Peak State ------------ > --- POWER ------------ (None) > --- PROPULSION ------- (None) > --- UTILITY ---------- Small Storage Unit Supersonic Drone Bay > --- WEAPON ----------- Light Assault Rifle Makeshift Spear > --- INVENTORY -------- (None) [Rating: 14] Favorites ----------- Power Ion Engine Engine Ion Engine Propulsion Aluminum Leg Leg Aluminum Leg Wheel Compact Wheel Utility Small Storage Unit Device Heat Sink Storage Small Storage Unit Weapon Makeshift Spear Energy Gun Medium Laser Ballistic Gun Assault Rifle Launcher Rocket Launcher Piercing Weapon Makeshift Spear Build | -11 -10 -10 -10 ------- Run | Scr Mat Min Exi Slots Evolved . | . . . . Power . | . . . . Propulsion . | . . . . Utility . | . . . . Weapon . | . . . . Parts Attached 23 | 6 . 14 3 Power 3 | 1 . 2 . Engine 3 | 1 . 2 . Core . | . . . . Reactor . | . . . . Propulsion 4 | 2 . 2 . Treads . | . . . . Leg 2 | . . 2 . Wheel 2 | 2 . . . Hover . | . . . . Flight . | . . . . Utility 4 | 1 . 2 1 Device 2 | . . 1 1 Storage 2 | 1 . 1 . Processor . | . . . . Hackware . | . . . . Protection . | . . . . Artifact . | . . . . Weapon 12 | 2 . 8 2 Energy Gun 6 | 1 . 5 . Energy Cannon . | . . . . Ballistic Gun 2 | 1 . . 1 Ballistic Cannon . | . . . . Launcher 3 | . . 2 1 Special Weapon . | . . . . Impact Weapon . | . . . . Slashing Weapon . | . . . . Piercing Weapon 1 | . . 1 . Special Melee Weapon . | . . . . Unidentified Prototypes 1 | . . . 1 Parts Lost 12 | . . 7 5 Power 2 | . . 2 . Propulsion 4 | . . 2 2 Utility 1 | . . . 1 Weapon 5 | . . 3 2 Highest Loss Streak 5 | . . 4 5 Average Slot Usage (%) 65 | . 85 53 82 Engine 3 | . 14 2 . Leg 14 | . . 13 26 Wheel 6 | . 28 1 . Device 7 | . . 6 13 Storage 10 | . 14 7 14 Energy Gun 12 | . 14 12 11 Ballistic Gun 3 | . 14 . . Piercing Weapon 7 | . . 7 14 Naked Turns 1 | . . 1 . Heaviest Build 15 | 13 13 15 10 Greatest Support 26 | 26 26 26 20 Greatest Overweight (x) 2 | . . 1 2 Average Overweight (x) . | . . . . Largest Inventory Capacity 6 | 6 6 6 6 Average Capacity 5 | 5 6 5 6 Most Carried 4 | 2 2 4 2 Average Carried 2 | . 2 2 1 Final Capacity 6 | 6 6 6 6 Final Carried 2 | 2 2 2 . Class Distribution -------------------- 65% | Mutant 34% | Scavenger-Mutant Dominant Class ---------------- Mutant | -10/Materials Mutant | -10/Mines Scavenger-Mutant | -10/Exiles Resources | -11 -10 -10 -10 ----------- Run | Scr Mat Min Exi Matter Collected 519 | 193 91 235 . Remotely . | . . . . Salvage Created 245 | . 77 132 36 Parts 8 | . 4 4 . Haulers Intercepted . | . . . . Recyclers Shooed . | . . . . Parts Field Recycled . | . . . . Retrieved Matter . | . . . . Parts Self-Destructed . | . . . . Prevented . | . . . . Kills | -11 -10 -10 -10 ------- Run | Scr Mat Min Exi Combat Hostiles Destroyed 26 | . 3 19 4 Melee 5 | . . 3 2 Guns 5 | . 3 2 . AOE 16 | . . 14 2 Classes Destroyed 4 | . 3 1 . Operator 1 | . 1 . . Swarmer 4 | . 2 2 . Grunt 2 | . 1 1 . Assembled 20 | . . 16 4 Best Kill Streak 15 | . 2 15 4 Combat Bots Only 15 | . 2 15 4 Max Kills in Single Turn 4 | . 1 4 2 Gunslinging . | . . . . Exploded 4 | . . 4 2 Melee 1 | . . 1 1 Uniques/NPCs Destroyed . | . . . . Combat | -11 -10 -10 -10 -------- Run | Scr Mat Min Exi Damage Taken 1085 | . 105 509 471 Core 262 | . 28 85 149 Absorbed by Shields . | . . . . Core Remaining (%) 100 | 100 . . . Volleys Fired 36 | . 19 16 1 Largest 2 | . 2 2 1 Hottest 90 | . 70 90 33 Shots Fired 61 | . 38 22 1 Gun 52 | . 38 14 . Cannon . | . . . . Launcher 9 | . . 8 1 Special . | . . . . Kinetic 22 | . 19 3 . Thermal 30 | . 19 11 . Explosive 9 | . . 8 1 Electromagnetic . | . . . . Robot Hit Streak 8 | . 5 8 . Robot Miss Streak 8 | . 8 2 1 Penetration Max . | . . . . Secondary Targets 1 | . 1 . . Max Gunslinging Chain 1 | . 1 . . Shots Hit Robots 41 | . 17 22 2 Core Hits 48 | . 6 36 6 Critical Hits . | . . . . Critical Kills . | . . . . Critical Parts Destroyed . | . . . . Melee Attacks 13 | . . 7 6 Impact . | . . . . Slashing . | . . . . Piercing 13 | . . 7 6 Sneak Attacks . | . . . . Combat Hostiles . | . . . . Follow-up Attacks . | . . . . Damage Inflicted 1597 | . 187 1209 201 Guns 317 | . 187 130 . Cannons . | . . . . Explosions 1040 | . . 903 137 Melee 240 | . . 176 64 Ramming . | . . . . Kinetic 106 | . 84 22 . Thermal 211 | . 103 108 . Explosive 1040 | . . 903 137 Electromagnetic . | . . . . Impact . | . . . . Slashing . | . . . . Piercing 240 | . . 176 64 Highest Corruption . | . . . . Average Corruption . | . . . . Corruption Purged . | . . . . Overload Shots . | . . . . Overflow Damage 8 | . . 8 . Projectiles . | . . . . Explosions 8 | . . 8 . Melee . | . . . . Knockbacks . | . . . . Impact . | . . . . Kinetic . | . . . . Secondary . | . . . . Self-Inflicted Damage 97 | . . 48 49 Shots 3 | . . 2 1 Rammed . | . . . . Targets Rammed . | . . . . Kicked . | . . . . Crushed . | . . . . Highest Temperature 135 | . 135 105 . Average Temperature 54 | . 57 48 . Received Heat Transfer 24 | . . 24 . Siege Activations . | . . . . Robots Corrupted . | . . . . Combat Hostiles . | . . . . Parts Fried . | . . . . Impact Corruptions . | . . . . Robots Melted . | . . . . Combat Hostiles . | . . . . Parts Melted 1 | . 1 . . Heat Transferred 593 | . 296 297 . Parts Sabotaged . | . . . . Parts Stolen . | . . . . Parts Stripped . | . . . . Power Chain Reactions . | . . . . Missiles Intercepted . | . . . . Alert | -11 -10 -10 -10 ------- Run | Scr Mat Min Exi Peak Influence 138 | . 115 138 . Initial 44 | . . 44 . Average 41 | . 53 40 . Maximum Alert Level . | . . . . Low Security (%) 100 | 100 100 100 . Level 1 . | . . . . Level 2 . | . . . . Level 3 . | . . . . Level 4 . | . . . . Level 5 . | . . . . High Security . | . . . . Max Security . | . . . . Squads Dispatched 2 | . 2 . . Investigation 1 | . 1 . . Extermination . | . . . . Reinforcement 1 | . 1 . . Assault . | . . . . Garrison . | . . . . Intercept . | . . . . Construction Impeded . | . . . . Haulers Reinforced . | . . . . Stealth | -11 -10 -10 -10 --------- Run | Scr Mat Min Exi Distress Signals 1 | . 1 . . Communications Jammed . | . . . . Distress Signals . | . . . . Times Spotted 36 | . 8 24 4 Peak Tracking Total 15 | . 2 15 8 Tactical Retreats 1 | . . 1 . Traps | -11 -10 -10 -10 ------- Run | Scr Mat Min Exi Traps Triggered . | . . . . Indirectly . | . . . . Trap Hack Attempts . | . . . . Triggered . | . . . . Disarmed . | . . . . Reprogrammed . | . . . . Reused . | . . . . Traps Extracted . | . . . . Installed . | . . . . Triggered . | . . . . Machines | -11 -10 -10 -10 ---------- Run | Scr Mat Min Exi Machines Disabled 2 | . . . 2 Max in Single Turn 1 | . . . 1 Machines Sabotaged . | . . . . Garrisons Compromised . | . . . . Overloaded Fab Kills . | . . . . Fab Network Shutdowns . | . . . . Hacking | -11 -10 -10 -10 --------- Run | Scr Mat Min Exi Machines Accessed 4 | . 1 . 3 Terminals 1 | . 1 . . Fabricators . | . . . . Repair Stations . | . . . . Recycling Units . | . . . . Scanalyzers . | . . . . Garrison Access . | . . . . Total Hacks 20 | . 2 . 18 Successful 18 | . . . 18 Failed 2 | . 2 . . Catastrophic 1 | . 1 . . Database Lockouts . | . . . . Manual 3 | . 2 . 1 Terminals 2 | . 2 . . Fabricators . | . . . . Repair Stations . | . . . . Recycling Units . | . . . . Scanalyzers . | . . . . Garrison Access . | . . . . Terminal Hacks 18 | . . . 18 Record 18 | . . . 18 Fabricator Hacks . | . . . . Repair Station Hacks . | . . . . Recycling Unit Hacks . | . . . . Scanalyzer . | . . . . Garrison Access Hacks . | . . . . Unauthorized Hacks . | . . . . Terminals . | . . . . Fabricators . | . . . . Repair Stations . | . . . . Recycling Units . | . . . . Scanalyzers . | . . . . Garrison Access . | . . . . Data Cores Recovered . | . . . . Used . | . . . . Hacking Detections 1 | . 1 . . Full Trace Events 1 | . 1 . . Feedback Events . | . . . . Feedback Blocked . | . . . . Robot Schematics Acquired . | . . . . Robots Built . | . . . . Matter . | . . . . Time . | . . . . Total Robot Build Rating . | . . . . Part Schematics Acquired . | . . . . Parts Built . | . . . . Matter . | . . . . Time . | . . . . Total Part Build Rating . | . . . . Parts Repaired . | . . . . Time . | . . . . Parts Recycled . | . . . . Recycled Matter . | . . . . Retrieved Matter . | . . . . Retrieved Components . | . . . . Parts Scanalyzed . | . . . . Part Schematics Acquired . | . . . . Parts Damaged . | . . . . Bothacking | -11 -10 -10 -10 ------------ Run | Scr Mat Min Exi Used RIF Installer . | . . . . Robots Hacked . | . . . . Non-combat . | . . . . Combat . | . . . . Robot Hacks Applied . | . . . . Relay Couplers Released . | . . . . Robots Rewired . | . . . . Allies Hacked . | . . . . Hacks Repelled . | . . . . Allies | -11 -10 -10 -10 -------- Run | Scr Mat Min Exi Total Allies 2 | . . 2 . Largest Group 2 | . . 2 2 Highest-Rated Group 41 | . . 41 41 Highest-Rated Ally 31 | . . 31 31 Total Orders . | . . . . Ally Attacks 15 | . . 15 . Total Damage 249 | . . 249 . Kills 4 | . . 4 . Allies Corrupted . | . . . . Allies Melted . | . . . . Intel | -11 -10 -10 -10 ------- Run | Scr Mat Min Exi Robot Analysis Total . | . . . . Derelict Logs Recovered 1 | . . 1 . Drone Launches . | . . . . Drone Recoveries . | . . . . Exploration | -11 -10 -10 -10 ------------- Run | Scr Mat Min Exi Turns Passed 915 | 38 151 521 205 Spaces Moved 772 | 29 98 489 156 Core 297 | 1 . 291 5 Treads . | . . . . Legs 336 | . . 185 151 Wheels 139 | 28 98 13 . Hover . | . . . . Flight . | . . . . Fastest Speed 50 | 50 90 50 120 Average Speed 88 | 92 90 77 120 Slowest Speed 150 | 100 90 120 150 Overloaded Moves . | . . . . Propulsion Burnouts . | . . . . Robots Hopped . | . . . . Cave-ins Triggered . | . . . . Exploration Rate (%) 39 | 4 23 87 43 Regions Visited 3 Branch Regions 2 Pre-discovered Areas . | . . . . Known Exits Taken . | . . . . Unknown Exits Taken 3 | 1 1 1 . Scrap Searched 1 | . . 1 . Spaces Dug . | . . . . Terrain Destroyed 85 | . . 80 5 Melee . | . . . . Projectile . | . . . . AOE 85 | . . 80 5 Terrain Rammed . | . . . . Walls Destroyed . | . . . . Machines Disabled . | . . . . Actions | -11 -10 -10 -10 --------- Run | Scr Mat Min Exi Total 923 | 36 122 599 166 Wait 73 | . 6 67 . Move 769 | 28 97 488 156 Hop . | . . . . Pick Up 5 | 2 . 3 . Fast Attach 12 | 6 . 5 1 Attach 7 | . . 5 2 Detach 3 | . . 3 . Swap 4 | . . 4 . Drop 1 | . . 1 . Fire 36 | . 19 16 1 Melee 13 | . . 7 6 Ram . | . . . . Kick . | . . . . Crush . | . . . . Escape Stasis . | . . . . Rewire . | . . . . Trap . | . . . . Miscellaneous . | . . . . Route ------- -11/Scrapyard -10/Materials -10/Mines (discovered 3 exits: [*Mat x2] / *Exi) -10/Exiles (discovered 1 exit: [*Min]) History --------- Turn | Location | Event 21 | -11/Scrapyard | Discovered new exit (range 16) 39 | -11/Scrapyard | Entered Materials 177 | -10/Materials | Discovered new exit (range 14) 190 | -10/Materials | Entered Mines 195 | -10/Mines | Assembled infested the area 201 | -10/Mines | Received a Rocket Launcher from a helpful Derelict 252 | -10/Mines | Destroyed 15 combat bots 291 | -10/Mines | Lost 4 parts (1p2n1w) 317 | -10/Mines | Build established: Mutant 415 | -10/Mines | Discovered new exit (range 9) 418 | -10/Mines | Learned Materials trap positions 422 | -10/Mines | A weapon hastily lodged in a ceiling crevice suddenly fell to the ground 569 | -10/Mines | Discovered new exit (range 5) 699 | -10/Mines | Deemed a non-threat by the Exiles lab entrance 699 | -10/Mines | Discovered new exit (range 5) 711 | -10/Mines | Entered Exiles 711 | -10/Exiles | Accompanied by 2 allies 727 | -10/Exiles | Discovered new exit (range 15) 740 | -10/Exiles | Met 8R-AWN 741 | -10/Exiles | Led the pair of lost Derelicts to a safe place 777 | -10/Exiles | Met EX-HEX 822 | -10/Exiles | Met EX-BIN 835 | -10/Exiles | Aligned with FarCom system 836 | -10/Exiles | Given EX-Vault access code 860 | -10/Exiles | Attacked by the Exiles 873 | -10/Exiles | Build established: Scavenger-Mutant 892 | -10/Exiles | Core integrity fell below 50% 892 | -10/Exiles | Opened EX-Vault 895 | -10/Exiles | Core integrity fell below 20% 909 | -10/Exiles | Found Prototype Device 909 | -10/Exiles | Identified Supersonic Drone Bay 916 | -10/Exiles | Destroyed by as-70096 with Assembled Heavy Rifle Last Messages --------------- that doubles as protection for when simply being cloaked isn't good enough. Same thing. Impressive, wish I'd thought of it. >>Record "HEX-105/Trap Reconfigurator" HEX: 0b10 trap systems are pretty poorly defended. I found that sending out a series of tuned electromagnetic waves is enough to redefine their targets. There's probably more we could do in this area. ** DEC: Like simultaneously trigger all the traps across a floor? Sounds good to me. 00888_ Sml. Laser destroyed. 00892_ Connecting with EX-Vault Access... 00893_ as-14685 destroyed. 00893_ as-22927 destroyed. 00893_ EX-Vault Access disabled. 00895_ as-32080 destroyed. 00896_ Heat Sink destroyed. 00900_ Aluminum Leg destroyed. 00903_ as-77558 destroyed. 00906_ Rocket Launcher destroyed. 00908_ Aluminum Leg destroyed. 00909_ Acquired Prototype Device. 00909_ Identified Supersonic Drone Bay. Map ----- +----------------------------------------------------+ | | | | | | | | | | | | | | | | | | | | | | | | | | | | | | | | | | | | | | | | | | | | | | | ???????????????????????#########?????????????????? | | ???????????????????????# [ #?????????????????? | | ???????????????????????# @ #?????????????????? | | ???????????????????????# #?????????????????? | | ???????????????????????# X#?????????????????? | | ??????????????????????### ##?????????????????? | | ??????????????????????# % #??????????????????? | | ??????????????????????## % #??????????????????? | | ???????????????????????# %% #??????????????????? | | ???????????????????????# #########??????????? | | ???????????????????????# ##""""""#??????????? | | ???????????????????????## ## """#??????????? | | ????????????????????????# X""#??????????? | | ????????????????????????# ## """#??????????? | | ????????????????######### ##""""""#??????????? | | ????????????????#""""""## #########??????????? | | ????????????????#"""" ## #??????????????????? | | ????????????????#""X" #??????????????????? | | ????????????????#" #??????????????????? | | ????????????????#" ## #??????????????????? | | ????????????????#" """"## #?#########????????? | | ????????????????##"###### #?#"""""""#????????? | | ???????????????? "?????# #?#"""""""#????????? | | ???????????????""" ?????# #?#"""""""#????????? | | ???????????????""" ????## ###"" """"#????????? | | ??????????????#"""?????#" """"#????????? | | ?????????????????#?????#" """#????????? | +----------------------------------------------------+ Best States ------------- Heat Dissipation 35 Energy Generation 10 Energy Capacity 250 Matter Stores 300 Matter Capacity 300 Sight Range 16 Terrain Scan Density 10 Evasion (%) 50 Item Schematics ----------------- None Robot Schematics ------------------ None Fabricated ------------ Nothing Alien Tech Used ----------------- None Achievements -------------- Exterminator Challenges ------------ None Game ------ Seed ReinforcedLayeredEngine Manual? 0 Play Time 00:21:17 Cumulative 122.9 hours Start 2020.11.04 @ 12:43:46 End 2020.11.04 @ 15:05:50 Sessions 3 Manual Loads 0 Difficulty Rogue Special Mode Halloween2020/ForbiddenLore Game No. 64 Rogue 64 Adventurer 0 Explorer 0 Win Type - Total 4 Types 3/0/1/0/0/0/0/0/0 Lore% 60 Gallery% 69 Achievement% 52 Wizard Run 0 Options --------- ASCII 1 Keyboard 1 Movement Numpad Keybinds 0 Fullscreen 2 Font 18/SmallcapsGlow Map View 76x50 Tactical HUD 1 Map Filters NONE Filters NONE Steam 1 RUN: 5ab98d38-7938-4657-9949-d44e37efbb5f